bitfinex/quotes_ETHUSD_20250626
["timestamp","ask_amount","ask_price","bid_price","bid_amount"]
[1750909006397,1.206953,2491.2,2490.7,4.01487278]
[1750909006582,0.94932301,2491.1,2490.7,4.01487278]
[1750909006780,1.206953,2491.2,2490.7,4.01487278]
[1750909007114,0.94932264,2491.1,2490.7,4.01487278]
[1750909007311,0.94932264,2491.0,2490.7,4.01487278]
[1750909007614,0.7553,2491.3,2490.7,4.01487278]
[1750909007815,0.95018409,2491.2,2490.7,4.01487278]
[1750909008017,0.95018409,2491.1,2490.7,4.01487278]
[1750909008212,0.95018409,2491.0,2490.7,4.01487278]
[1750909008421,0.95106929,2490.9,2490.7,4.01487278]
[1750909008574,0.2,2490.9,2490.7,4.01487278]
[1750909009417,0.95121795,2490.8,2490.7,4.01487278]
[1750909011812,0.95121795,2490.8,2490.5,0.2]
[1750909012014,1.15121795,2490.7,2490.3,6.977]
[1750909012179,0.95121795,2490.6,2490.4,4.0154192]
[1750909012375,0.2,2490.7,2490.4,4.0154192]
[1750909013215,0.95356797,2490.6,2490.4,10.7924192]
[1750909013398,0.95356797,2490.5,2490.4,10.7924192]
[1750909013916,0.95356797,2490.5,2490.4,4.0154192]
[1750909014124,0.95356797,2490.5,2490.4,6.777]
[1750909015500,0.95356797,2490.5,2490.3,4.0155426]
[1750909015700,0.95356797,2490.4,2490.3,10.7925426]
[1750909016225,0.95356797,2490.4,2490.3,4.0155426]
[1750909017030,0.95356797,2490.4,2490.3,10.7915426]
[1750909017210,0.95356797,2490.4,2490.3,4.0155426]
[1750909017393,0.95356797,2490.4,2490.3,10.7915426]
[1750909017733,0.95356797,2490.4,2490.2,4.01569377]
[1750909017904,3.32884792,2490.3,2490.2,6.776]
[1750909018430,1.73956797,2490.3,2490.1,6.776]
[1750909018611,2.74833034,2490.2,2490.1,6.776]
[1750909019014,2.74833034,2490.2,2489.9,4.01615464]
[1750909019217,1.59476237,2490.0,2489.9,6.775]
[1750909019407,2.54833034,2490.0,2489.9,6.775]
[1750909019600,2.54833034,2490.0,2489.8,1.79979408]
[1750909019803,2.54833034,2489.9,2489.8,5.81618093]
[1750909020128,0.95356797,2489.9,2489.8,12.39038093]
[1750909020329,2.54833034,2489.9,2489.8,12.39038093]
[1750909020629,2.54833034,2489.9,2489.8,8.37399408]
[1750909020834,0.786,2489.8,2489.6,10.79158545]
[1750909021002,2.5501762,2489.7,2489.5,4.21760494]
[1750909021204,0.95356797,2489.6,2489.5,4.21760494]
[1750909021930,0.95356797,2489.6,2489.5,10.99260494]
[1750909022126,0.95356797,2489.6,2489.5,5.00540494]
[1750909022330,0.95356797,2489.6,2489.5,11.78040494]
[1750909022538,0.95356797,2489.6,2489.5,10.99260494]
[1750909024550,0.95356797,2489.6,2489.5,10.79180494]
[1750909025547,0.95356797,2489.6,2489.5,4.01680494]
[1750909025710,0.95356797,2489.6,2489.5,10.79180494]
[1750909027225,0.95356797,2489.6,2489.5,4.01680494]
[1750909027417,0.95356797,2489.6,2489.5,6.775]
[1750909027942,1.0024,2489.5,2489.2,4.01721948]
[1750909028142,1.0024,2489.5,2489.3,4.01717835]
[1750909028143,0.95702108,2489.4,2489.3,4.01717835]
[1750909028344,0.95702108,2489.4,2489.3,6.774]
[1750909028547,1.15782108,2489.4,2489.3,10.79119358]
[1750909029965,0.95702108,2489.4,2489.3,11.55759358]
[1750909030132,2.39491234,2490.1,2489.8,4.01638685]
[1750909030133,11.59660823,2490.0,2489.8,4.01638685]
[1750909030328,0.9572065,2489.9,2489.7,10.79050031]
[1750909030630,1.1580065,2489.8,2489.7,6.774]
[1750909030841,1.1580065,2489.8,2489.7,10.79054817]
[1750909032464,1.1560065,2489.8,2489.7,10.79054817]
[1750909033862,1.1560065,2489.8,2489.7,10.78954817]
[1750909034070,1.1560065,2489.8,2489.7,6.773]
[1750909034257,1.1560065,2489.8,2489.7,10.78954817]
[1750909034946,0.1988,2489.8,2489.7,10.78954817]
[1750909035344,0.1988,2489.8,2489.7,4.01654817]
[1750909035661,0.1988,2489.8,2489.7,10.78954817]
[1750909036762,2.6417,2490.3,2490.0,4.01606425]
[1750909037061,2.6417,2490.3,2489.7,6.773]
[1750909037062,0.2008,2489.9,2489.7,10.78944913]
[1750909037970,0.2008,2489.9,2489.8,4.01638685]
[1750909040265,10.0,2490.2,2490.0,4.01605029]
[1750909040473,0.2008,2490.1,2490.0,4.01605029]
[1750909040968,1.9359151,2490.1,2489.5,4.01675109]
[1750909041143,0.9590151,2490.0,2489.7,6.771]
[1750909041342,0.9590151,2489.9,2489.7,6.771]
[1750909041548,0.7761,2490.1,2489.7,6.771]
[1750909041767,0.95956017,2490.0,2489.7,6.771]
[1750909041955,0.95956017,2489.9,2489.6,4.01661929]
[1750909042164,1.019,2489.6,2489.3,4.01716784]
[1750909042348,0.2008,2489.5,2489.4,6.771]
[1750909043169,0.2008,2489.5,2489.4,4.01703221]
[1750909043359,0.2008,2489.7,2489.6,4.01670951]
[1750909043682,0.2008,2489.7,2489.6,10.78670951]
[1750909044191,0.7549,2490.1,2489.7,4.01646275]
[1750909044493,0.2008,2489.9,2489.7,4.01646275]
[1750909044698,0.9598178,2489.8,2489.6,10.78665309]
[1750909044854,0.2008,2489.9,2489.7,6.77]
[1750909045044,0.96009808,2489.8,2489.6,4.01665309]
[1750909045250,0.96013949,2489.7,2489.6,10.78665309]
[1750909049080,0.96013949,2489.7,2489.6,10.78565309]
[1750909049296,0.96013949,2489.7,2489.6,11.18873371]
[1750909049596,1.59660823,2490.2,2489.9,4.01616579]
[1750909049597,10.0,2490.2,2489.9,4.01616579]
[1750909049890,0.96163433,2490.1,2489.9,4.01616579]
[1750909050051,0.96163433,2490.0,2489.9,4.01616579]
[1750909050863,0.2,2490.2,2490.1,4.0158472]
[1750909051153,1.16163973,2490.2,2490.1,4.0158472]
[1750909052464,10.0,2490.6,2490.3,4.01546231]
[1750909052681,1.16123132,2490.5,2490.3,10.78246231]
[1750909052906,0.96123132,2490.4,2490.3,10.78246231]
[1750909053954,0.96123132,2490.4,2490.3,4.01546231]
[1750909054160,0.96123132,2490.4,2490.3,10.78146231]
[1750909054376,0.96123132,2490.4,2490.3,4.01546231]
[1750909054780,0.96123132,2490.4,2490.3,10.78146231]
[1750909054986,0.96123132,2490.4,2490.3,4.01546231]
[1750909055191,0.96123132,2490.4,2490.3,10.78146231]
[1750909055764,10.0,2490.9,2490.5,4.01515041]
[1750909055994,0.2,2490.6,2490.5,6.766]
[1750909056289,1.16047524,2490.6,2490.5,10.78125798]
[1750909056995,0.96047524,2490.6,2490.5,10.78125798]
[1750909057160,0.2,2490.7,2490.6,4.01509676]
[1750909057486,1.1597291,2490.7,2490.6,4.01509676]
[1750909058767,1.1597291,2490.7,2490.5,10.7812207]
[1750909058981,10.0,2490.9,2490.3,4.0154749]
[1750909058982,0.9597291,2490.6,2490.3,4.0154749]
[1750909059178,1.15955189,2490.5,2490.3,4.0154749]
[1750909059462,0.2,2490.5,2490.3,4.0154749]
[1750909060078,0.2,2490.5,2490.2,6.764]
[1750909060270,0.7802,2490.6,2490.1,4.0157848]
[1750909060474,0.95947671,2490.5,2490.3,4.01556037]
[1750909060677,0.55,2490.8,2490.3,4.01556037]
[1750909060878,0.95947999,2490.7,2490.3,10.77856037]
[1750909061094,0.95947999,2490.6,2490.3,10.77856037]
[1750909061265,0.95947999,2490.5,2490.3,4.01556037]
[1750909061596,0.55,2490.8,2490.3,10.77856037]
[1750909061786,0.95940198,2490.7,2490.3,10.77856037]
[1750909061971,0.95940198,2490.6,2490.3,10.77856037]
[1750909062300,0.95940198,2490.5,2490.3,10.77856037]
[1750909062475,2.02538082,2490.8,2490.3,10.77856037]
[1750909062795,0.95935795,2490.7,2490.3,10.77856037]
[1750909063090,0.95935795,2490.6,2490.3,6.763]
[1750909063392,0.95935795,2490.5,2490.3,10.77854685]
[1750909063583,2.02538082,2490.8,2490.3,10.77854685]
[1750909063788,0.95933391,2490.7,2490.3,10.77854685]
[1750909063966,0.95933391,2490.6,2490.3,6.763]
[1750909064295,0.2,2490.3,2490.0,4.81133704]
[1750909064493,0.2,2490.3,2490.1,6.761]
[1750909064793,0.2,2490.3,2490.1,10.77689698]
[1750909065281,0.2,2490.3,2490.1,4.01589698]
[1750909065487,0.2,2490.3,2490.1,10.77689698]
[1750909066714,0.2,2490.3,2490.2,4.0157417]
[1750909068011,0.2,2490.3,2490.1,10.77685119]
[1750909069112,0.2,2490.3,2490.0,4.01604338]
[1750909069285,0.7757,2490.6,2490.1,6.76]
[1750909069614,0.95940259,2490.5,2490.1,6.76]
[1750909069904,0.2,2490.1,2490.0,4.01604338]
[1750909070722,0.2,2490.1,2490.0,10.77504338]
[1750909071381,0.2,2490.1,2489.8,4.0163419]
[1750909071581,0.7991,2490.1,2489.9,6.759]
[1750909071780,0.8023,2490.3,2489.9,10.77521783]
[1750909071994,0.2008,2489.9,2489.8,6.759]
[1750909072217,0.55,2490.2,2489.8,10.77535836]
[1750909072412,0.95971625,2490.1,2489.8,6.759]
[1750909072579,0.55,2490.4,2490.0,4.01596303]
[1750909072780,0.95964833,2490.3,2490.0,4.01596303]
[1750909073018,0.95964833,2490.2,2490.0,4.01596303]
[1750909073218,0.55,2490.4,2490.0,4.01596303]
[1750909073422,0.959879,2490.3,2489.9,4.01622433]
[1750909073722,0.2008,2490.0,2489.9,4.01622433]
[1750909074921,0.2008,2490.0,2489.9,4.78812433]
[1750909075514,0.96005074,2490.4,2489.9,4.78807426]
[1750909075714,0.2,2490.3,2490.2,4.0157417]
[1750909075915,0.2,2490.3,2490.2,10.7727417]
[1750909078117,1.16094889,2490.3,2490.2,10.7727417]
[1750909079409,1.16094889,2490.3,2490.2,10.7717417]
[1750909080115,1.16144187,2490.3,2490.2,10.7717417]
[1750909081497,0.2,2490.3,2490.2,10.7717417]
[1750909081696,1.16149735,2490.3,2490.2,10.7717417]
[1750909082529,1.93249735,2490.3,2489.9,0.2008]
[1750909082742,1.93249735,2490.3,2490.0,4.01606425]
[1750909082743,0.2,2490.1,2490.0,4.01606425]
[1750909087431,0.2,2490.1,2490.0,10.76906425]
[1750909087637,0.2,2490.1,2489.8,4.80584337]
[1750909087836,0.96180311,2490.0,2489.9,6.752]
[1750909087996,0.2008,2489.9,2489.7,4.01650613]
[1750909088202,0.96180311,2489.8,2489.7,4.01650613]
[1750909088423,0.96180311,2489.8,2489.6,4.01658151]
[1750909088631,0.2008,2489.9,2489.7,6.752]
[1750909088830,0.2008,2489.9,2489.6,6.752]
[1750909088831,0.96178555,2489.8,2489.6,6.752]
[1750909089050,0.2008,2489.7,2489.6,10.76870951]
[1750909089233,1.16259804,2489.7,2489.6,11.54040951]
[1750909089544,0.2008,2489.7,2489.6,11.54040951]
[1750909089736,0.2008,2489.7,2489.6,6.752]
[1750909090136,0.2008,2489.7,2489.6,10.76870951]
[1750909090333,0.2008,2489.7,2489.4,4.78858254]
[1750909090539,0.2008,2489.7,2489.6,6.752]
[1750909090733,1.16224947,2489.7,2489.6,6.752]
[1750909090937,1.16224947,2489.7,2489.6,10.76870951]
[1750909091243,0.96144947,2489.7,2489.6,10.76870951]
[1750909091449,0.2008,2489.8,2489.7,4.01645558]
[1750909091654,1.16198886,2489.8,2489.7,4.01645558]
[1750909091854,0.96118886,2489.8,2489.7,4.01645558]
[1750909093359,0.2008,2489.9,2489.8,4.01638685]
[1750909093527,1.16170158,2489.9,2489.8,4.01638685]
[1750909093955,1.16170158,2489.9,2489.8,10.76738685]
[1750909094730,1.16170158,2489.9,2489.8,6.751]
[1750909095860,0.96090158,2489.9,2489.8,6.751]
[1750909098534,0.96090158,2489.9,2489.8,10.76738685]
[1750909098730,0.96090158,2489.9,2489.8,6.751]
[1750909099060,0.96090158,2489.9,2489.7,4.01648228]
[1750909099266,0.7501,2490.1,2489.7,10.76548228]
[1750909099453,0.96064333,2490.0,2489.7,6.749]
[1750909099654,0.96064333,2489.9,2489.7,6.749]
[1750909099855,0.96064333,2489.8,2489.7,6.749]
[1750909101045,0.96064333,2489.8,2489.6,6.749]
[1750909101237,0.96064333,2489.7,2489.5,4.01686299]
[1750909101438,0.55,2490.0,2489.6,6.748]
[1750909101632,0.96055805,2489.9,2489.5,4.01686299]
[1750909101837,0.96055805,2489.8,2489.5,4.01686299]
[1750909102055,0.96055805,2489.7,2489.5,4.01686299]
[1750909102261,0.55,2490.0,2489.6,6.748]
[1750909102460,0.96044734,2489.9,2489.6,10.7646826]
[1750909102649,0.96044734,2489.8,2489.6,10.7646826]
[1750909102845,0.96044734,2489.7,2489.6,10.7646826]
[1750909103343,10.0,2490.2,2490.0,4.01606425]
[1750909103678,0.96024324,2490.1,2490.0,4.01606425]
[1750909105867,1.5661,2490.0,2489.7,6.747]
[1750909106036,0.2008,2489.8,2489.6,10.76264096]
[1750909106236,1.3653,2490.0,2489.3,0.7707]
[1750909106541,0.9604007,2489.9,2489.5,6.746]
[1750909106753,0.9604007,2489.8,2489.5,10.76282479]
[1750909106937,0.9604007,2489.7,2489.5,10.76282479]
[1750909107143,1.3653,2490.0,2489.5,10.76282479]
[1750909107373,0.96045976,2489.9,2489.5,10.76282479]
[1750909107541,0.96045976,2489.8,2489.5,10.76282479]
[1750909107740,0.96045976,2489.7,2489.5,10.76282479]
[1750909108050,1.3653,2490.0,2489.6,4.01669752]
[1750909108369,0.96049639,2489.9,2489.7,4.01653098]
[1750909108550,0.96049639,2489.8,2489.7,4.01653098]
[1750909109250,10.0,2490.2,2490.0,4.01593679]
[1750909109568,0.96056637,2490.1,2490.0,4.01593679]
[1750909110452,0.2008,2490.0,2489.9,4.01615922]
[1750909110647,1.16136637,2490.0,2489.9,4.01615922]
[1750909110850,1.16136637,2490.0,2489.9,4.79835922]
[1750909111158,10.17460823,2490.7,2490.4,4.01531103]
[1750909111366,10.96071656,2490.6,2490.3,4.01551558]
[1750909111573,0.96071656,2490.5,2490.4,4.0154192]
[1750909112680,0.96071656,2490.5,2490.4,10.7594192]
[1750909112884,0.7597,2491.4,2490.7,0.8031]
[1750909113062,0.96037422,2491.3,2491.2,4.01412973]
[1750909113264,0.96037422,2491.3,2491.2,10.75712973]
[1750909113788,0.2,2491.5,2491.4,4.01380749]
[1750909113985,0.2,2491.5,2491.0,6.96111216]
[1750909113986,0.9591198,2491.5,2491.0,1.813]
[1750909114148,0.2,2491.1,2491.0,6.742]
[1750909114353,1.15869175,2491.1,2491.0,6.742]
[1750909114680,2.27456092,2491.1,2490.8,4.01472802]
[1750909114885,1.11586917,2491.1,2490.9,6.742]
[1750909115382,0.2,2490.9,2490.7,6.742]
[1750909115684,0.8161,2491.0,2490.7,6.742]
[1750909115852,0.8161,2491.0,2490.7,10.75692839]
[1750909116053,1.11586917,2491.1,2490.8,4.0147573]
[1750909116254,11.813,2491.5,2490.2,6.0286892]
[1750909116255,0.2,2490.7,2490.3,2.6033]
[1750909116488,0.2,2490.7,2490.6,4.01509676]
[1750909117794,0.8088,2491.3,2491.1,4.01422832]
[1750909118095,0.55,2491.4,2491.1,4.01422832]
[1750909118261,0.55,2491.4,2491.2,4.01412973]
[1750909118461,0.55,2491.4,2491.0,4.01433566]
[1750909118667,0.86207,2491.4,2490.9,10.75559451]
[1750909118886,0.2,2491.0,2490.9,4.01459451]
[1750909119090,0.2,2491.0,2490.9,10.75459451]
[1750909120691,2.42010823,2492.0,2490.9,0.7729]
[1750909120894,0.8235,2491.6,2491.1,4.01416725]
[1750909121093,0.8235,2491.6,2491.0,4.01441221]
[1750909121298,0.8235,2491.6,2491.1,6.739]
[1750909121703,0.55,2491.5,2490.8,4.01465226]
[1750909121905,0.55,2491.3,2490.8,6.739]
[1750909122069,1.50601733,2491.3,2490.8,6.739]
[1750909122271,1.50601733,2491.3,2490.7,10.75379276]
[1750909122755,11.50601733,2491.3,2490.4,0.7567]
[1750909123010,1.23295173,2491.4,2490.5,4.01514081]
[1750909123011,0.55,2491.1,2490.5,4.01514081]
[1750909123182,2.91886906,2491.1,2490.5,4.01514081]
[1750909123511,0.55,2490.9,2490.3,10.75346884]
[1750909123699,0.8095,2490.8,2490.3,4.01546884]
[1750909123894,0.55,2490.7,2490.3,4.01546884]
[1750909124297,0.8095,2490.8,2490.1,6.738]
[1750909124502,0.8095,2490.8,2490.4,4.01527541]
[1750909124798,0.8095,2490.8,2490.5,4.01523941]
[1750909125103,0.8095,2490.8,2490.6,4.01506603]
[1750909125877,0.8095,2490.8,2490.4,4.01537177]
[1750909127819,0.8095,2490.8,2490.2,4.01570834]
[1750909127820,0.55,2490.7,2490.2,4.01571684]
[1750909128533,1.50662613,2490.7,2490.2,4.01571684]
[1750909128921,1.50662613,2490.7,2490.1,4.01582189]
[1750909129336,1.50662613,2490.7,2490.3,4.01553169]
[1750909129527,0.55,2490.7,2490.3,4.01553169]
[1750909129825,0.55,2490.7,2490.2,4.0156785]
[1750909130003,0.55,2490.7,2490.1,4.01582189]
[1750909130004,0.55,2490.7,2490.3,4.0155466]
[1750909131608,0.8095,2490.8,2490.3,4.0155466]
[1750909131814,0.2,2490.4,2490.2,4.01568631]
[1750909132127,0.2,2490.3,2490.2,4.01568631]
[1750909138031,0.7669,2490.9,2490.6,4.01502333]
[1750909138248,12.08976483,2490.8,2490.4,4.01534029]
[1750909138415,0.95807483,2490.7,2490.4,4.01534029]
[1750909138616,10.0,2490.8,2490.4,4.01534029]
[1750909138947,0.95414152,2490.7,2490.2,4.015646]
[1750909139245,0.55,2490.7,2490.2,4.015646]
[1750909139452,0.95256064,2490.6,2490.2,4.015646]
[1750909139627,0.7669,2490.5,2490.2,4.015646]
[1750909139831,0.7669,2490.5,2489.7,5.82343304]
[1750909139832,0.55,2490.4,2489.1,0.8318]
[1750909140052,0.55,2490.2,2489.7,4.01643507]
[1750909140253,0.55,2490.2,2489.2,10.75135497]
[1750909140254,0.95266125,2490.1,2489.3,4.01719358]
[1750909140462,1.807,2490.4,2490.2,4.01573152]
[1750909140768,1.807,2490.4,2489.9,4.01611796]
[1750909140769,0.95368734,2490.3,2489.9,4.01611796]
[1750909141054,1.807,2490.4,2489.7,11.58130886]
[1750909141055,1.807,2490.4,2490.2,4.01572115]
[1750909141258,0.95253451,2490.3,2490.2,4.01572115]
[1750909141606,0.95253451,2490.3,2490.1,4.01583623]
[1750909141754,1.807,2490.4,2490.1,4.01583623]
[1750909141954,0.95264462,2490.3,2490.1,4.01583623]
[1750909142154,1.807,2490.4,2489.8,6.734]
[1750909142155,1.807,2490.4,2490.0,4.0160402]
[1750909142386,0.95359426,2490.3,2490.0,4.0160402]
[1750909142586,0.95455803,2490.2,2490.0,4.0160402]
[1750909142790,1.807,2490.4,2490.0,4.0160402]
[1750909142977,0.95408981,2490.3,2490.0,4.0160402]
[1750909143287,1.807,2490.4,2490.0,4.0160402]
[1750909143487,0.95333671,2490.3,2490.0,4.0160402]
[1750909143657,1.807,2490.4,2490.0,4.0160402]
[1750909143857,0.95450736,2490.3,2490.0,4.0160402]
[1750909144055,0.95450736,2490.2,2490.0,4.0160402]
[1750909144260,1.807,2490.4,2489.9,4.01618485]
[1750909144489,0.95667267,2490.3,2489.9,4.01618485]
[1750909144673,0.7674,2490.1,2489.9,4.01618485]
[1750909144987,0.7674,2490.1,2489.8,4.01631922]
[1750909145358,0.95762909,2490.0,2489.0,0.7664]
[1750909145686,0.95762909,2489.9,2489.5,4.01674192]
[1750909145906,1.3656,2490.0,2489.4,4.01692091]
[1750909146075,1.59676585,2489.9,2489.4,4.01692091]
[1750909146400,0.63946574,2489.9,2489.3,4.01712398]
[1750909146564,2.3076817,2489.8,2489.2,4.01724728]
[1750909146766,0.9573817,2489.7,2489.1,10.74945636]
[1750909147095,0.95740475,2489.6,2489.1,4.01746428]
[1750909147261,11.3503,2489.8,2489.1,4.01746428]
[1750909147464,0.55,2489.6,2489.1,4.01746428]
[1750909148107,0.2008,2489.2,2489.1,4.01746428]
[1750909148288,0.2008,2489.2,2488.9,4.0178392]
[1750909148958,0.2008,2489.2,2488.8,2.57678003]
[1750909149163,0.2008,2489.0,2488.8,1.61348003]
[1750909150561,1.3192,2489.2,2488.8,1.61348003]
[1750909150878,1.72755975,2489.2,2488.8,1.61348003]
[1750909152390,0.2008,2488.8,2488.3,7.7268]
[1750909152706,0.2008,2488.6,2488.5,4.01848503]
[1750909158704,0.2008,2488.6,2488.3,10.75066381]
[1750909159006,0.2008,2488.5,2488.3,4.01866381]
[1750909160279,0.8303,2488.7,2488.0,4.01916949]
[1750909160481,0.2008,2488.2,2488.1,10.75103888]
[1750909161302,0.2008,2488.2,2488.1,4.01903888]
[1750909161612,0.2008,2488.2,2488.1,10.75003888]
[1750909161826,12.6214,2488.9,2488.4,4.01858925]
[1750909162119,0.2008,2488.5,2488.4,4.01858925]
[1750909163381,0.2008,2488.5,2488.4,4.83368925]
[1750909163793,0.2008,2488.5,2488.4,4.01858925]
[1750909163994,0.2008,2488.5,2488.4,10.74958925]
[1750909164428,12.6214,2488.9,2488.7,4.01804927]
[1750909164429,11.808,2488.9,2488.7,4.01804927]
[1750909165490,0.55,2488.6,2488.0,0.7541]
[1750909165718,0.2008,2488.5,2488.0,4.01922902]
[1750909165890,0.2008,2488.2,2488.0,4.01922902]
[1750909166308,0.2008,2488.2,2487.8,4.22039562]
[1750909166502,0.2008,2488.2,2487.9,4.01935644]
[1750909166714,0.2008,2488.2,2488.0,4.01927259]
[1750909167232,0.2008,2488.2,2488.0,4.0192503]
[1750909167436,0.2008,2488.2,2488.1,4.01913106]
[1750909167805,10.95464169,2488.8,2488.1,7.5333]
[1750909168133,2.00496798,2489.2,2488.2,10.74983877]
[1750909168134,0.2008,2488.6,2488.2,10.74983877]
[1750909168307,0.2008,2488.4,2488.2,4.01883877]
[1750909168713,0.2008,2488.4,2488.3,4.01880802]
[1750909171147,0.2008,2488.4,2488.2,6.731]
[1750909171727,0.2008,2488.4,2488.1,11.55240648]
[1750909172042,1.0016,2488.4,2487.9,0.2008]
[1750909172241,1.0016,2488.4,2487.9,4.01932642]
[1750909172242,0.2008,2488.0,2487.9,4.01932642]
[1750909172544,0.2008,2488.0,2487.8,10.74954588]
[1750909172744,0.2008,2488.0,2487.8,4.01954588]
[1750909174144,0.2008,2488.0,2487.7,10.74971355]
[1750909175118,0.95822278,2487.9,2487.8,4.01961572]
[1750909175535,0.95822278,2487.9,2487.7,10.74973251]
[1750909175726,0.2008,2488.0,2487.7,10.74973251]
[1750909175924,0.95814594,2487.9,2487.7,10.74973251]
[1750909176127,0.2008,2487.9,2487.7,6.73]
[1750909176331,0.2008,2487.9,2487.6,10.74993158]
[1750909176530,0.95854539,2487.8,2487.6,10.74993158]
[1750909176730,0.2008,2487.9,2487.6,10.74993158]
[1750909177051,0.2008,2487.7,2487.1,4.77710172]
[1750909177218,0.95843967,2487.6,2487.2,10.75046607]
[1750909177414,1.15923967,2487.5,2487.2,10.75046607]
[1750909177647,0.2008,2487.5,2487.2,10.75046607]
[1750909177854,0.2008,2487.5,2487.3,10.74939236]
[1750909178018,0.2008,2487.5,2487.4,4.02026212]
[1750909178222,1.1590973,2487.5,2487.4,4.02026212]
[1750909178440,0.2008,2487.5,2487.4,4.02026212]
[1750909178645,0.2008,2487.5,2487.3,10.74936187]
[1750909178853,0.2008,2487.5,2487.4,4.02026212]
[1750909179054,1.15904863,2487.5,2487.4,4.02026212]
[1750909179461,1.15892958,2487.5,2487.4,4.02026212]
[1750909179662,1.15892958,2487.5,2487.3,10.74940218]
[1750909179840,0.2008,2487.5,2487.3,10.74940218]
[1750909180772,0.2008,2487.5,2487.4,4.02026212]
[1750909181657,0.2008,2487.5,2487.3,10.74937167]
[1750909182964,0.2008,2487.5,2487.4,4.02026212]
[1750909183888,10.0,2488.0,2487.4,0.8306]
[1750909184087,1.15699403,2487.9,2487.8,4.01950926]
[1750909184506,3.1785599,2488.8,2488.2,4.01895159]
[1750909184507,0.2008,2488.3,2488.2,4.01895159]
[1750909185594,0.8253,2488.7,2488.5,4.01841936]
[1750909185796,0.95673143,2488.6,2488.5,4.01841936]
[1750909189491,0.95673143,2488.6,2488.3,10.74569028]
[1750909189717,1.15753143,2488.5,2488.0,4.21997417]
[1750909189994,0.2008,2488.3,2488.2,4.01893069]
[1750909190196,1.15753143,2488.3,2488.2,4.01893069]
[1750909191571,1.15753143,2488.3,2488.0,0.2008]
[1750909191789,0.8,2488.5,2488.0,4.0192926]
[1750909192095,0.2008,2488.2,2488.1,4.01913106]
[1750909192888,0.2008,2488.2,2488.0,4.01926454]
[1750909193100,0.2008,2488.2,2488.1,4.01913106]
[1750909193266,1.15596353,2488.2,2488.1,4.01913106]
[1750909193603,0.2008,2488.2,2488.1,4.01913106]
[1750909194704,10.782,2488.7,2488.1,0.792]
[1750909194865,0.95543934,2488.6,2488.5,4.01848503]
[1750909196096,0.2008,2488.5,2488.4,4.01859515]
[1750909196300,0.2008,2488.5,2487.6,0.7576]
[1750909196301,0.55,2488.4,2487.6,0.7576]
[1750909196465,0.55,2488.2,2487.2,0.7576]
[1750909196803,0.7985,2488.0,2487.2,0.7576]
[1750909196985,0.95543934,2487.9,2487.5,4.01996489]
[1750909197191,0.95543934,2487.8,2487.5,4.01996489]
[1750909197395,0.7985,2488.0,2487.5,4.01996489]
[1750909197591,0.95549095,2487.9,2487.5,4.01996489]
[1750909197769,0.95549095,2487.8,2487.6,4.01992265]
[1750909197974,0.7985,2488.0,2487.7,4.01977263]
[1750909198174,3.39460823,2488.3,2487.7,4.01977263]
[1750909198175,2.6063,2488.3,2487.8,4.01961572]
[1750909198410,10.95565587,2488.2,2488.1,4.01913106]
[1750909198608,10.95565587,2488.2,2488.0,4.0192315]
[1750909198908,0.95565587,2488.1,2488.0,4.0192315]
[1750909199812,10.0,2488.2,2488.1,4.01913106]
[1750909200112,1.798,2488.3,2488.1,4.01913106]
[1750909200327,1.798,2488.3,2488.1,4.01907639]
[1750909200634,2.05863,2488.3,2488.1,4.01913086]
[1750909200981,2.05863,2488.3,2487.8,4.01958404]
[1750909201209,0.26063,2488.3,2487.7,0.8233]
[1750909201488,0.55,2488.5,2487.7,0.8233]
[1750909201812,0.95271693,2488.4,2488.1,4.01901159]
[1750909202012,0.95271693,2488.3,2488.1,4.01901159]
[1750909202309,0.8083,2488.4,2488.1,4.01901159]
[1750909202510,0.95226283,2488.3,2488.1,4.01901159]
[1750909202709,0.8083,2488.4,2488.1,4.01901159]
[1750909202906,0.95230584,2488.3,2488.2,4.01896953]
[1750909204333,11.798,2488.6,2488.4,4.01858738]
[1750909204334,10.8083,2488.6,2488.4,4.01858738]
[1750909204616,0.95290613,2488.5,2488.4,4.01858738]
[1750909205804,0.95429774,2488.7,2488.2,4.01896953]
[1750909206006,1.798,2488.8,2488.2,4.01896953]
[1750909206324,0.2008,2488.4,2488.2,4.01882916]
[1750909206498,0.2008,2488.3,2488.2,4.01882916]
[1750909207583,0.2008,2488.3,2488.2,4.01896953]
[1750909209486,0.8182,2488.6,2488.5,4.01848503]
[1750909209692,12.6098,2488.8,2488.6,4.01828006]
[1750909209926,2.26736236,2488.7,2488.6,4.01828006]
[1750909210113,0.2008,2488.6,2488.4,4.01860903]
[1750909210315,0.2008,2488.5,2488.4,4.01860903]
[1750909211018,0.2008,2488.5,2487.9,7.5479]
[1750909211224,0.2008,2488.3,2488.2,4.01885213]
[1750909211526,0.8118,2488.3,2487.9,4.01942728]
[1750909211821,0.2008,2488.1,2488.0,4.01918888]
[1750909212026,0.2008,2488.1,2487.9,4.01940053]
[1750909214644,0.8118,2488.3,2487.9,4.01940053]
[1750909214807,0.95376846,2488.2,2487.9,4.01940053]
[1750909215002,0.95376846,2488.1,2487.8,4.01956488]
[1750909215208,0.35635685,2488.2,2487.9,4.01943967]
[1750909215513,0.95358239,2488.1,2487.9,4.01943967]
[1750909215719,0.35635685,2488.2,2487.9,4.01943967]
[1750909215931,0.95342614,2488.1,2487.5,0.7574]
[1750909216115,0.2008,2487.8,2487.7,4.01966874]
[1750909218731,0.2008,2487.8,2487.6,4.01988721]
[1750909218932,0.7593,2487.9,2487.6,4.01988721]
[1750909219100,0.95458007,2487.8,2487.6,4.01988721]
[1750909219299,0.7593,2487.9,2487.6,4.01988721]
[1750909219500,0.95466965,2487.8,2487.5,4.02003218]
[1750909219730,0.7593,2487.9,2487.5,4.02003218]
[1750909220027,0.95474725,2487.8,2487.5,4.02003218]
[1750909220232,0.7593,2487.9,2487.5,4.02003218]
[1750909220436,0.95477175,2487.8,2487.5,4.02003218]
[1750909220612,0.7593,2487.9,2487.5,4.02003218]
[1750909220929,0.95487922,2487.8,2487.5,4.02003218]
[1750909221126,0.7593,2487.9,2487.3,4.02039329]
[1750909221127,0.2008,2487.5,2487.3,4.02042375]
[1750909221301,0.2008,2487.5,2487.4,4.02026212]
[1750909222112,0.2008,2487.5,2487.3,4.02036605]